Workbook

Sheet YTD 예산 요약
A2: 2005 실제 금액 대 예산 YTD
A4: G/L 코드 | B4: 계정 이름 | C4: 실제 금액 | D4: 예산 | E4: 남은 금액 \ | F4: 남은 금액 %
A6: 1000 | B6: 광고비 | C6: ='월간 지출 요약'!O6 -> \750,750.00 | D6: \100,000,000.00 | E6: =SUM(+D6-C6) -> \99,249,250.00 | F6: =SUM(E6/D6) -> 99.25%
A8: 2000 | B8: 사무실 장비 | C8: ='월간 지출 요약'!O8 -> 0 | D8: \100,000,000.00 | E8: =SUM(+D8-C8) -> \100,000,000.00 | F8: =SUM(E8/D8) -> 100.00%
A10: 3000 | B10: 프린터 | C10: ='월간 지출 요약'!O10 -> 0 | D10: \100,000,000.00 | E10: =SUM(+D10-C10) -> \100,000,000.00 | F10: =SUM(E10/D10) -> 100.00%
A12: 4000 | B12: 서버 비용 | C12: ='월간 지출 요약'!O12 -> 0 | D12: \100,000,000.00 | E12: =SUM(+D12-C12) -> \100,000,000.00 | F12: =SUM(E12/D12) -> 100.00%
A14: 5000 | B14: 비품 | C14: ='월간 지출 요약'!O14 -> 0 | D14: \50,000,000.00 | E14: =SUM(+D14-C14) -> \50,000,000.00 | F14: =SUM(E14/D14) -> 100.00%
A16: 6000 | B16: 고객 경비 | C16: ='월간 지출 요약'!O16 -> 0 | D16: \25,000,000.00 | E16: =SUM(+D16-C16) -> \25,000,000.00 | F16: =SUM(E16/D16) -> 100.00%
A18: 7000 | B18: 컴퓨터 | C18: ='월간 지출 요약'!O18 -> \2,500,000.00 | D18: \75,000,000.00 | E18: =SUM(+D18-C18) -> \72,500,000.00 | F18: =SUM(E18/D18) -> 96.67%
A20: 8000 | B20: 의료 계획 | C20: ='월간 지출 요약'!O20 -> 0 | D20: \65,000,000.00 | E20: =SUM(+D20-C20) -> \65,000,000.00 | F20: =SUM(E20/D20) -> 100.00%
A22: 9000 | B22: 건물 비용 | C22: ='월간 지출 요약'!O22 -> 0 | D22: \125,000,000.00 | E22: =SUM(+D22-C22) -> \125,000,000.00 | F22: =SUM(E22/D22) -> 100.00%
A24: 10000 | B24: 마케팅 | C24: ='월간 지출 요약'!O24 -> 0 | D24: \100,000,000.00 | E24: =SUM(+D24-C24) -> \100,000,000.00 | F24: =SUM(E24/D24) -> 100.00%
A26: 11000 | B26: 자선 사업 | C26: ='월간 지출 요약'!O26 -> \2,500,000.00 | D26: \250,000,000.00 | E26: =SUM(+D26-C26) -> \247,500,000.00 | F26: =SUM(E26/D26) -> 99.00%
A28: 12000 | B28: 후원금 | C28: ='월간 지출 요약'!O28 -> \1,000,000.00 | D28: \50,000,000.00 | E28: =SUM(+D28-C28) -> \49,000,000.00 | F28: =SUM(E28/D28) -> 98.00%
B30: 합계 | C30: =SUM(C6:C28) -> \6,750,750.00 | D30: =SUM(D6:D28) -> \1,140,000,000.00 | E30: =SUM(E6:E28) -> \1,133,249,250.00 | F30: =SUM(E30/D30) -> 99.41%

Sheet 월간 지출 요약
A2: 2005년 월간 지출
A4: G/L 코드 | B4: 계정 이름 | C4: 2005-01-01 | D4: 2005-02-01 | E4: 2005-03-01 | F4: 2005-04-01 | G4: 2005-05-01 | H4: 2005-06-01 | I4: 2005-07-01 | J4: 2005-08-01 | K4: 2005-09-01 | L4: 2005-10-01 | M4: 2005-11-01 | N4: 2005-12-01 | O4: 2005
A6: 1000 | B6: 광고비 | C6: =SUMIF('자선 사업 및 후원'!$L:$L,"="&($A6&TEXT(C$4,"yyyy-mm")),'자선 사업 및 후원'!$D:$D)+SUMIF('항목별 지출'!$J:$J,"="&($A6&TEXT(C$4,"yyyy-mm")),'항목별 지출'!$E:$E) -> \750,750.00 | D6: =(SUMIF('자선 사업 및 후원'!$L:$L,"="&($A6&TEXT(D$4,"yyyy-mm")),'자선 사업 및 후원'!$D:$D)+SUMIF('항목별 지출'!$J:$J,"="&($A6&TEXT(D$4,"yyyy-mm")),'항목별 지출'!$E:$E))*1000 -> 0 | E6: =(SUMIF('자선 사업 및 후원'!$L:$L,"="&($A6&TEXT(E$4,"yyyy-mm")),'자선 사업 및 후원'!$D:$D)+SUMIF('항목별 지출'!$J:$J,"="&($A6&TEXT(E$4,"yyyy-mm")),'항목별 지출'!$E:$E))*1000 -> 0 | F6: =(SUMIF('자선 사업 및 후원'!$L:$L,"="&($A6&TEXT(F$4,"yyyy-mm")),'자선 사업 및 후원'!$D:$D)+SUMIF('항목별 지출'!$J:$J,"="&($A6&TEXT(F$4,"yyyy-mm")),'항목별 지출'!$E:$E))*1000 -> 0 | G6: =(SUMIF('자선 사업 및 후원'!$L:$L,"="&($A6&TEXT(G$4,"yyyy-mm")),'자선 사업 및 후원'!$D:$D)+SUMIF('항목별 지출'!$J:$J,"="&($A6&TEXT(G$4,"yyyy-mm")),'항목별 지출'!$E:$E))*1000 -> 0 | H6: =(SUMIF('자선 사업 및 후원'!$L:$L,"="&($A6&TEXT(H$4,"yyyy-mm")),'자선 사업 및 후원'!$D:$D)+SUMIF('항목별 지출'!$J:$J,"="&($A6&TEXT(H$4,"yyyy-mm")),'항목별 지출'!$E:$E))*1000 -> 0 | I6: =(SUMIF('자선 사업 및 후원'!$L:$L,"="&($A6&TEXT(I$4,"yyyy-mm")),'자선 사업 및 후원'!$D:$D)+SUMIF('항목별 지출'!$J:$J,"="&($A6&TEXT(I$4,"yyyy-mm")),'항목별 지출'!$E:$E))*1000 -> 0 | J6: =(SUMIF('자선 사업 및 후원'!$L:$L,"="&($A6&TEXT(J$4,"yyyy-mm")),'자선 사업 및 후원'!$D:$D)+SUMIF('항목별 지출'!$J:$J,"="&($A6&TEXT(J$4,"yyyy-mm")),'항목별 지출'!$E:$E))*1000 -> 0 | K6: =(SUMIF('자선 사업 및 후원'!$L:$L,"="&($A6&TEXT(K$4,"yyyy-mm")),'자선 사업 및 후원'!$D:$D)+SUMIF('항목별 지출'!$J:$J,"="&($A6&TEXT(K$4,"yyyy-mm")),'항목별 지출'!$E:$E))*1000 -> 0 | L6: =(SUMIF('자선 사업 및 후원'!$L:$L,"="&($A6&TEXT(L$4,"yyyy-mm")),'자선 사업 및 후원'!$D:$D)+SUMIF('항목별 지출'!$J:$J,"="&($A6&TEXT(L$4,"yyyy-mm")),'항목별 지출'!$E:$E))*1000 -> 0 | M6: =(SUMIF('자선 사업 및 후원'!$L:$L,"="&($A6&TEXT(M$4,"yyyy-mm")),'자선 사업 및 후원'!$D:$D)+SUMIF('항목별 지출'!$J:$J,"="&($A6&TEXT(M$4,"yyyy-mm")),'항목별 지출'!$E:$E))*1000 -> 0 | N6: =(SUMIF('자선 사업 및 후원'!$L:$L,"="&($A6&TEXT(N$4,"yyyy-mm")),'자선 사업 및 후원'!$D:$D)+SUMIF('항목별 지출'!$J:$J,"="&($A6&TEXT(N$4,"yyyy-mm")),'항목별 지출'!$E:$E))*1000 -> 0 | O6: =SUM(C6:N6) -> \750,750.00
A8: 2000 | B8: 사무실 장비 | C8: =SUMIF('자선 사업 및 후원'!$L:$L,"="&($A8&TEXT(C$4,"yyyy-mm")),'자선 사업 및 후원'!$D:$D)+SUMIF('항목별 지출'!$J:$J,"="&($A8&TEXT(C$4,"yyyy-mm")),'항목별 지출'!$E:$E) -> 0 | D8: =(SUMIF('자선 사업 및 후원'!$L:$L,"="&($A8&TEXT(D$4,"yyyy-mm")),'자선 사업 및 후원'!$D:$D)+SUMIF('항목별 지출'!$J:$J,"="&($A8&TEXT(D$4,"yyyy-mm")),'항목별 지출'!$E:$E))*1000 -> 0 | E8: =(SUMIF('자선 사업 및 후원'!$L:$L,"="&($A8&TEXT(E$4,"yyyy-mm")),'자선 사업 및 후원'!$D:$D)+SUMIF('항목별 지출'!$J:$J,"="&($A8&TEXT(E$4,"yyyy-mm")),'항목별 지출'!$E:$E))*1000 -> 0 | F8: =(SUMIF('자선 사업 및 후원'!$L:$L,"="&($A8&TEXT(F$4,"yyyy-mm")),'자선 사업 및 후원'!$D:$D)+SUMIF('항목별 지출'!$J:$J,"="&($A8&TEXT(F$4,"yyyy-mm")),'항목별 지출'!$E:$E))*1000 -> 0 | G8: =(SUMIF('자선 사업 및 후원'!$L:$L,"="&($A8&TEXT(G$4,"yyyy-mm")),'자선 사업 및 후원'!$D:$D)+SUMIF('항목별 지출'!$J:$J,"="&($A8&TEXT(G$4,"yyyy-mm")),'항목별 지출'!$E:$E))*1000 -> 0 | H8: =(SUMIF('자선 사업 및 후원'!$L:$L,"="&($A8&TEXT(H$4,"yyyy-mm")),'자선 사업 및 후원'!$D:$D)+SUMIF('항목별 지출'!$J:$J,"="&($A8&TEXT(H$4,"yyyy-mm")),'항목별 지출'!$E:$E))*1000 -> 0 | I8: =(SUMIF('자선 사업 및 후원'!$L:$L,"="&($A8&TEXT(I$4,"yyyy-mm")),'자선 사업 및 후원'!$D:$D)+SUMIF('항목별 지출'!$J:$J,"="&($A8&TEXT(I$4,"yyyy-mm")),'항목별 지출'!$E:$E))*1000 -> 0 | J8: =(SUMIF('자선 사업 및 후원'!$L:$L,"="&($A8&TEXT(J$4,"yyyy-mm")),'자선 사업 및 후원'!$D:$D)+SUMIF('항목별 지출'!$J:$J,"="&($A8&TEXT(J$4,"yyyy-mm")),'항목별 지출'!$E:$E))*1000 -> 0 | K8: =(SUMIF('자선 사업 및 후원'!$L:$L,"="&($A8&TEXT(K$4,"yyyy-mm")),'자선 사업 및 후원'!$D:$D)+SUMIF('항목별 지출'!$J:$J,"="&($A8&TEXT(K$4,"yyyy-mm")),'항목별 지출'!$E:$E))*1000 -> 0 | L8: =(SUMIF('자선 사업 및 후원'!$L:$L,"="&($A8&TEXT(L$4,"yyyy-mm")),'자선 사업 및 후원'!$D:$D)+SUMIF('항목별 지출'!$J:$J,"="&($A8&TEXT(L$4,"yyyy-mm")),'항목별 지출'!$E:$E))*1000 -> 0 | M8: =(SUMIF('자선 사업 및 후원'!$L:$L,"="&($A8&TEXT(M$4,"yyyy-mm")),'자선 사업 및 후원'!$D:$D)+SUMIF('항목별 지출'!$J:$J,"="&($A8&TEXT(M$4,"yyyy-mm")),'항목별 지출'!$E:$E))*1000 -> 0 | N8: =(SUMIF('자선 사업 및 후원'!$L:$L,"="&($A8&TEXT(N$4,"yyyy-mm")),'자선 사업 및 후원'!$D:$D)+SUMIF('항목별 지출'!$J:$J,"="&($A8&TEXT(N$4,"yyyy-mm")),'항목별 지출'!$E:$E))*1000 -> 0 | O8: =(SUM(C8:N8))*1000 -> 0
A10: 3000 | B10: 프린터 | C10: =SUMIF('자선 사업 및 후원'!$L:$L,"="&($A10&TEXT(C$4,"yyyy-mm")),'자선 사업 및 후원'!$D:$D)+SUMIF('항목별 지출'!$J:$J,"="&($A10&TEXT(C$4,"yyyy-mm")),'항목별 지출'!$E:$E) -> 0 | D10: =(SUMIF('자선 사업 및 후원'!$L:$L,"="&($A10&TEXT(D$4,"yyyy-mm")),'자선 사업 및 후원'!$D:$D)+SUMIF('항목별 지출'!$J:$J,"="&($A10&TEXT(D$4,"yyyy-mm")),'항목별 지출'!$E:$E))*1000 -> 0 | E10: =(SUMIF('자선 사업 및 후원'!$L:$L,"="&($A10&TEXT(E$4,"yyyy-mm")),'자선 사업 및 후원'!$D:$D)+SUMIF('항목별 지출'!$J:$J,"="&($A10&TEXT(E$4,"yyyy-mm")),'항목별 지출'!$E:$E))*1000 -> 0 | F10: =(SUMIF('자선 사업 및 후원'!$L:$L,"="&($A10&TEXT(F$4,"yyyy-mm")),'자선 사업 및 후원'!$D:$D)+SUMIF('항목별 지출'!$J:$J,"="&($A10&TEXT(F$4,"yyyy-mm")),'항목별 지출'!$E:$E))*1000 -> 0 | G10: =(SUMIF('자선 사업 및 후원'!$L:$L,"="&($A10&TEXT(G$4,"yyyy-mm")),'자선 사업 및 후원'!$D:$D)+SUMIF('항목별 지출'!$J:$J,"="&($A10&TEXT(G$4,"yyyy-mm")),'항목별 지출'!$E:$E))*1000 -> 0 | H10: =(SUMIF('자선 사업 및 후원'!$L:$L,"="&($A10&TEXT(H$4,"yyyy-mm")),'자선 사업 및 후원'!$D:$D)+SUMIF('항목별 지출'!$J:$J,"="&($A10&TEXT(H$4,"yyyy-mm")),'항목별 지출'!$E:$E))*1000 -> 0 | I10: =(SUMIF('자선 사업 및 후원'!$L:$L,"="&($A10&TEXT(I$4,"yyyy-mm")),'자선 사업 및 후원'!$D:$D)+SUMIF('항목별 지출'!$J:$J,"="&($A10&TEXT(I$4,"yyyy-mm")),'항목별 지출'!$E:$E))*1000 -> 0 | J10: =(SUMIF('자선 사업 및 후원'!$L:$L,"="&($A10&TEXT(J$4,"yyyy-mm")),'자선 사업 및 후원'!$D:$D)+SUMIF('항목별 지출'!$J:$J,"="&($A10&TEXT(J$4,"yyyy-mm")),'항목별 지출'!$E:$E))*1000 -> 0 | K10: =(SUMIF('자선 사업 및 후원'!$L:$L,"="&($A10&TEXT(K$4,"yyyy-mm")),'자선 사업 및 후원'!$D:$D)+SUMIF('항목별 지출'!$J:$J,"="&($A10&TEXT(K$4,"yyyy-mm")),'항목별 지출'!$E:$E))*1000 -> 0 | L10: =(SUMIF('자선 사업 및 후원'!$L:$L,"="&($A10&TEXT(L$4,"yyyy-mm")),'자선 사업 및 후원'!$D:$D)+SUMIF('항목별 지출'!$J:$J,"="&($A10&TEXT(L$4,"yyyy-mm")),'항목별 지출'!$E:$E))*1000 -> 0 | M10: =(SUMIF('자선 사업 및 후원'!$L:$L,"="&($A10&TEXT(M$4,"yyyy-mm")),'자선 사업 및 후원'!$D:$D)+SUMIF('항목별 지출'!$J:$J,"="&($A10&TEXT(M$4,"yyyy-mm")),'항목별 지출'!$E:$E))*1000 -> 0 | N10: =(SUMIF('자선 사업 및 후원'!$L:$L,"="&($A10&TEXT(N$4,"yyyy-mm")),'자선 사업 및 후원'!$D:$D)+SUMIF('항목별 지출'!$J:$J,"="&($A10&TEXT(N$4,"yyyy-mm")),'항목별 지출'!$E:$E))*1000 -> 0 | O10: =(SUM(C10:N10))*1000 -> 0
A12: 4000 | B12: 서버 비용 | C12: =SUMIF('자선 사업 및 후원'!$L:$L,"="&($A12&TEXT(C$4,"yyyy-mm")),'자선 사업 및 후원'!$D:$D)+SUMIF('항목별 지출'!$J:$J,"="&($A12&TEXT(C$4,"yyyy-mm")),'항목별 지출'!$E:$E) -> 0 | D12: =(SUMIF('자선 사업 및 후원'!$L:$L,"="&($A12&TEXT(D$4,"yyyy-mm")),'자선 사업 및 후원'!$D:$D)+SUMIF('항목별 지출'!$J:$J,"="&($A12&TEXT(D$4,"yyyy-mm")),'항목별 지출'!$E:$E))*1000 -> 0 | E12: =(SUMIF('자선 사업 및 후원'!$L:$L,"="&($A12&TEXT(E$4,"yyyy-mm")),'자선 사업 및 후원'!$D:$D)+SUMIF('항목별 지출'!$J:$J,"="&($A12&TEXT(E$4,"yyyy-mm")),'항목별 지출'!$E:$E))*1000 -> 0 | F12: =(SUMIF('자선 사업 및 후원'!$L:$L,"="&($A12&TEXT(F$4,"yyyy-mm")),'자선 사업 및 후원'!$D:$D)+SUMIF('항목별 지출'!$J:$J,"="&($A12&TEXT(F$4,"yyyy-mm")),'항목별 지출'!$E:$E))*1000 -> 0 | G12: =(SUMIF('자선 사업 및 후원'!$L:$L,"="&($A12&TEXT(G$4,"yyyy-mm")),'자선 사업 및 후원'!$D:$D)+SUMIF('항목별 지출'!$J:$J,"="&($A12&TEXT(G$4,"yyyy-mm")),'항목별 지출'!$E:$E))*1000 -> 0 | H12: =(SUMIF('자선 사업 및 후원'!$L:$L,"="&($A12&TEXT(H$4,"yyyy-mm")),'자선 사업 및 후원'!$D:$D)+SUMIF('항목별 지출'!$J:$J,"="&($A12&TEXT(H$4,"yyyy-mm")),'항목별 지출'!$E:$E))*1000 -> 0 | I12: =(SUMIF('자선 사업 및 후원'!$L:$L,"="&($A12&TEXT(I$4,"yyyy-mm")),'자선 사업 및 후원'!$D:$D)+SUMIF('항목별 지출'!$J:$J,"="&($A12&TEXT(I$4,"yyyy-mm")),'항목별 지출'!$E:$E))*1000 -> 0 | J12: =(SUMIF('자선 사업 및 후원'!$L:$L,"="&($A12&TEXT(J$4,"yyyy-mm")),'자선 사업 및 후원'!$D:$D)+SUMIF('항목별 지출'!$J:$J,"="&($A12&TEXT(J$4,"yyyy-mm")),'항목별 지출'!$E:$E))*1000 -> 0 | K12: =(SUMIF('자선 사업 및 후원'!$L:$L,"="&($A12&TEXT(K$4,"yyyy-mm")),'자선 사업 및 후원'!$D:$D)+SUMIF('항목별 지출'!$J:$J,"="&($A12&TEXT(K$4,"yyyy-mm")),'항목별 지출'!$E:$E))*1000 -> 0 | L12: =(SUMIF('자선 사업 및 후원'!$L:$L,"="&($A12&TEXT(L$4,"yyyy-mm")),'자선 사업 및 후원'!$D:$D)+SUMIF('항목별 지출'!$J:$J,"="&($A12&TEXT(L$4,"yyyy-mm")),'항목별 지출'!$E:$E))*1000 -> 0 | M12: =(SUMIF('자선 사업 및 후원'!$L:$L,"="&($A12&TEXT(M$4,"yyyy-mm")),'자선 사업 및 후원'!$D:$D)+SUMIF('항목별 지출'!$J:$J,"="&($A12&TEXT(M$4,"yyyy-mm")),'항목별 지출'!$E:$E))*1000 -> 0 | N12: =(SUMIF('자선 사업 및 후원'!$L:$L,"="&($A12&TEXT(N$4,"yyyy-mm")),'자선 사업 및 후원'!$D:$D)+SUMIF('항목별 지출'!$J:$J,"="&($A12&TEXT(N$4,"yyyy-mm")),'항목별 지출'!$E:$E))*1000 -> 0 | O12: =(SUM(C12:N12))*1000 -> 0
A14: 5000 | B14: 비품 | C14: =SUMIF('자선 사업 및 후원'!$L:$L,"="&($A14&TEXT(C$4,"yyyy-mm")),'자선 사업 및 후원'!$D:$D)+SUMIF('항목별 지출'!$J:$J,"="&($A14&TEXT(C$4,"yyyy-mm")),'항목별 지출'!$E:$E) -> 0 | D14: =(SUMIF('자선 사업 및 후원'!$L:$L,"="&($A14&TEXT(D$4,"yyyy-mm")),'자선 사업 및 후원'!$D:$D)+SUMIF('항목별 지출'!$J:$J,"="&($A14&TEXT(D$4,"yyyy-mm")),'항목별 지출'!$E:$E))*1000 -> 0 | E14: =(SUMIF('자선 사업 및 후원'!$L:$L,"="&($A14&TEXT(E$4,"yyyy-mm")),'자선 사업 및 후원'!$D:$D)+SUMIF('항목별 지출'!$J:$J,"="&($A14&TEXT(E$4,"yyyy-mm")),'항목별 지출'!$E:$E))*1000 -> 0 | F14: =(SUMIF('자선 사업 및 후원'!$L:$L,"="&($A14&TEXT(F$4,"yyyy-mm")),'자선 사업 및 후원'!$D:$D)+SUMIF('항목별 지출'!$J:$J,"="&($A14&TEXT(F$4,"yyyy-mm")),'항목별 지출'!$E:$E))*1000 -> 0 | G14: =(SUMIF('자선 사업 및 후원'!$L:$L,"="&($A14&TEXT(G$4,"yyyy-mm")),'자선 사업 및 후원'!$D:$D)+SUMIF('항목별 지출'!$J:$J,"="&($A14&TEXT(G$4,"yyyy-mm")),'항목별 지출'!$E:$E))*1000 -> 0 | H14: =(SUMIF('자선 사업 및 후원'!$L:$L,"="&($A14&TEXT(H$4,"yyyy-mm")),'자선 사업 및 후원'!$D:$D)+SUMIF('항목별 지출'!$J:$J,"="&($A14&TEXT(H$4,"yyyy-mm")),'항목별 지출'!$E:$E))*1000 -> 0 | I14: =(SUMIF('자선 사업 및 후원'!$L:$L,"="&($A14&TEXT(I$4,"yyyy-mm")),'자선 사업 및 후원'!$D:$D)+SUMIF('항목별 지출'!$J:$J,"="&($A14&TEXT(I$4,"yyyy-mm")),'항목별 지출'!$E:$E))*1000 -> 0 | J14: =(SUMIF('자선 사업 및 후원'!$L:$L,"="&($A14&TEXT(J$4,"yyyy-mm")),'자선 사업 및 후원'!$D:$D)+SUMIF('항목별 지출'!$J:$J,"="&($A14&TEXT(J$4,"yyyy-mm")),'항목별 지출'!$E:$E))*1000 -> 0 | K14: =(SUMIF('자선 사업 및 후원'!$L:$L,"="&($A14&TEXT(K$4,"yyyy-mm")),'자선 사업 및 후원'!$D:$D)+SUMIF('항목별 지출'!$J:$J,"="&($A14&TEXT(K$4,"yyyy-mm")),'항목별 지출'!$E:$E))*1000 -> 0 | L14: =(SUMIF('자선 사업 및 후원'!$L:$L,"="&($A14&TEXT(L$4,"yyyy-mm")),'자선 사업 및 후원'!$D:$D)+SUMIF('항목별 지출'!$J:$J,"="&($A14&TEXT(L$4,"yyyy-mm")),'항목별 지출'!$E:$E))*1000 -> 0 | M14: =(SUMIF('자선 사업 및 후원'!$L:$L,"="&($A14&TEXT(M$4,"yyyy-mm")),'자선 사업 및 후원'!$D:$D)+SUMIF('항목별 지출'!$J:$J,"="&($A14&TEXT(M$4,"yyyy-mm")),'항목별 지출'!$E:$E))*1000 -> 0 | N14: =(SUMIF('자선 사업 및 후원'!$L:$L,"="&($A14&TEXT(N$4,"yyyy-mm")),'자선 사업 및 후원'!$D:$D)+SUMIF('항목별 지출'!$J:$J,"="&($A14&TEXT(N$4,"yyyy-mm")),'항목별 지출'!$E:$E))*1000 -> 0 | O14: =(SUM(C14:N14))*1000 -> 0
A16: 6000 | B16: 고객 경비 | C16: =SUMIF('자선 사업 및 후원'!$L:$L,"="&($A16&TEXT(C$4,"yyyy-mm")),'자선 사업 및 후원'!$D:$D)+SUMIF('항목별 지출'!$J:$J,"="&($A16&TEXT(C$4,"yyyy-mm")),'항목별 지출'!$E:$E) -> 0 | D16: =(SUMIF('자선 사업 및 후원'!$L:$L,"="&($A16&TEXT(D$4,"yyyy-mm")),'자선 사업 및 후원'!$D:$D)+SUMIF('항목별 지출'!$J:$J,"="&($A16&TEXT(D$4,"yyyy-mm")),'항목별 지출'!$E:$E))*1000 -> 0 | E16: =(SUMIF('자선 사업 및 후원'!$L:$L,"="&($A16&TEXT(E$4,"yyyy-mm")),'자선 사업 및 후원'!$D:$D)+SUMIF('항목별 지출'!$J:$J,"="&($A16&TEXT(E$4,"yyyy-mm")),'항목별 지출'!$E:$E))*1000 -> 0 | F16: =(SUMIF('자선 사업 및 후원'!$L:$L,"="&($A16&TEXT(F$4,"yyyy-mm")),'자선 사업 및 후원'!$D:$D)+SUMIF('항목별 지출'!$J:$J,"="&($A16&TEXT(F$4,"yyyy-mm")),'항목별 지출'!$E:$E))*1000 -> 0 | G16: =(SUMIF('자선 사업 및 후원'!$L:$L,"="&($A16&TEXT(G$4,"yyyy-mm")),'자선 사업 및 후원'!$D:$D)+SUMIF('항목별 지출'!$J:$J,"="&($A16&TEXT(G$4,"yyyy-mm")),'항목별 지출'!$E:$E))*1000 -> 0 | H16: =(SUMIF('자선 사업 및 후원'!$L:$L,"="&($A16&TEXT(H$4,"yyyy-mm")),'자선 사업 및 후원'!$D:$D)+SUMIF('항목별 지출'!$J:$J,"="&($A16&TEXT(H$4,"yyyy-mm")),'항목별 지출'!$E:$E))*1000 -> 0 | I16: =(SUMIF('자선 사업 및 후원'!$L:$L,"="&($A16&TEXT(I$4,"yyyy-mm")),'자선 사업 및 후원'!$D:$D)+SUMIF('항목별 지출'!$J:$J,"="&($A16&TEXT(I$4,"yyyy-mm")),'항목별 지출'!$E:$E))*1000 -> 0 | J16: =(SUMIF('자선 사업 및 후원'!$L:$L,"="&($A16&TEXT(J$4,"yyyy-mm")),'자선 사업 및 후원'!$D:$D)+SUMIF('항목별 지출'!$J:$J,"="&($A16&TEXT(J$4,"yyyy-mm")),'항목별 지출'!$E:$E))*1000 -> 0 | K16: =(SUMIF('자선 사업 및 후원'!$L:$L,"="&($A16&TEXT(K$4,"yyyy-mm")),'자선 사업 및 후원'!$D:$D)+SUMIF('항목별 지출'!$J:$J,"="&($A16&TEXT(K$4,"yyyy-mm")),'항목별 지출'!$E:$E))*1000 -> 0 | L16: =(SUMIF('자선 사업 및 후원'!$L:$L,"="&($A16&TEXT(L$4,"yyyy-mm")),'자선 사업 및 후원'!$D:$D)+SUMIF('항목별 지출'!$J:$J,"="&($A16&TEXT(L$4,"yyyy-mm")),'항목별 지출'!$E:$E))*1000 -> 0 | M16: =(SUMIF('자선 사업 및 후원'!$L:$L,"="&($A16&TEXT(M$4,"yyyy-mm")),'자선 사업 및 후원'!$D:$D)+SUMIF('항목별 지출'!$J:$J,"="&($A16&TEXT(M$4,"yyyy-mm")),'항목별 지출'!$E:$E))*1000 -> 0 | N16: =(SUMIF('자선 사업 및 후원'!$L:$L,"="&($A16&TEXT(N$4,"yyyy-mm")),'자선 사업 및 후원'!$D:$D)+SUMIF('항목별 지출'!$J:$J,"="&($A16&TEXT(N$4,"yyyy-mm")),'항목별 지출'!$E:$E))*1000 -> 0 | O16: =(SUM(C16:N16))*1000 -> 0
A18: 7000 | B18: 컴퓨터 | C18: =SUMIF('자선 사업 및 후원'!$L:$L,"="&($A18&TEXT(C$4,"yyyy-mm")),'자선 사업 및 후원'!$D:$D)+SUMIF('항목별 지출'!$J:$J,"="&($A18&TEXT(C$4,"yyyy-mm")),'항목별 지출'!$E:$E) -> \2,500,000.00 | D18: =(SUMIF('자선 사업 및 후원'!$L:$L,"="&($A18&TEXT(D$4,"yyyy-mm")),'자선 사업 및 후원'!$D:$D)+SUMIF('항목별 지출'!$J:$J,"="&($A18&TEXT(D$4,"yyyy-mm")),'항목별 지출'!$E:$E))*1000 -> 0 | E18: =(SUMIF('자선 사업 및 후원'!$L:$L,"="&($A18&TEXT(E$4,"yyyy-mm")),'자선 사업 및 후원'!$D:$D)+SUMIF('항목별 지출'!$J:$J,"="&($A18&TEXT(E$4,"yyyy-mm")),'항목별 지출'!$E:$E))*1000 -> 0 | F18: =(SUMIF('자선 사업 및 후원'!$L:$L,"="&($A18&TEXT(F$4,"yyyy-mm")),'자선 사업 및 후원'!$D:$D)+SUMIF('항목별 지출'!$J:$J,"="&($A18&TEXT(F$4,"yyyy-mm")),'항목별 지출'!$E:$E))*1000 -> 0 | G18: =(SUMIF('자선 사업 및 후원'!$L:$L,"="&($A18&TEXT(G$4,"yyyy-mm")),'자선 사업 및 후원'!$D:$D)+SUMIF('항목별 지출'!$J:$J,"="&($A18&TEXT(G$4,"yyyy-mm")),'항목별 지출'!$E:$E))*1000 -> 0 | H18: =(SUMIF('자선 사업 및 후원'!$L:$L,"="&($A18&TEXT(H$4,"yyyy-mm")),'자선 사업 및 후원'!$D:$D)+SUMIF('항목별 지출'!$J:$J,"="&($A18&TEXT(H$4,"yyyy-mm")),'항목별 지출'!$E:$E))*1000 -> 0 | I18: =(SUMIF('자선 사업 및 후원'!$L:$L,"="&($A18&TEXT(I$4,"yyyy-mm")),'자선 사업 및 후원'!$D:$D)+SUMIF('항목별 지출'!$J:$J,"="&($A18&TEXT(I$4,"yyyy-mm")),'항목별 지출'!$E:$E))*1000 -> 0 | J18: =(SUMIF('자선 사업 및 후원'!$L:$L,"="&($A18&TEXT(J$4,"yyyy-mm")),'자선 사업 및 후원'!$D:$D)+SUMIF('항목별 지출'!$J:$J,"="&($A18&TEXT(J$4,"yyyy-mm")),'항목별 지출'!$E:$E))*1000 -> 0 | K18: =(SUMIF('자선 사업 및 후원'!$L:$L,"="&($A18&TEXT(K$4,"yyyy-mm")),'자선 사업 및 후원'!$D:$D)+SUMIF('항목별 지출'!$J:$J,"="&($A18&TEXT(K$4,"yyyy-mm")),'항목별 지출'!$E:$E))*1000 -> 0 | L18: =(SUMIF('자선 사업 및 후원'!$L:$L,"="&($A18&TEXT(L$4,"yyyy-mm")),'자선 사업 및 후원'!$D:$D)+SUMIF('항목별 지출'!$J:$J,"="&($A18&TEXT(L$4,"yyyy-mm")),'항목별 지출'!$E:$E))*1000 -> 0 | M18: =(SUMIF('자선 사업 및 후원'!$L:$L,"="&($A18&TEXT(M$4,"yyyy-mm")),'자선 사업 및 후원'!$D:$D)+SUMIF('항목별 지출'!$J:$J,"="&($A18&TEXT(M$4,"yyyy-mm")),'항목별 지출'!$E:$E))*1000 -> 0 | N18: =(SUMIF('자선 사업 및 후원'!$L:$L,"="&($A18&TEXT(N$4,"yyyy-mm")),'자선 사업 및 후원'!$D:$D)+SUMIF('항목별 지출'!$J:$J,"="&($A18&TEXT(N$4,"yyyy-mm")),'항목별 지출'!$E:$E))*1000 -> 0 | O18: =SUM(C18:N18) -> \2,500,000.00
A20: 8000 | B20: 의료 계획 | C20: =SUMIF('자선 사업 및 후원'!$L:$L,"="&($A20&TEXT(C$4,"yyyy-mm")),'자선 사업 및 후원'!$D:$D)+SUMIF('항목별 지출'!$J:$J,"="&($A20&TEXT(C$4,"yyyy-mm")),'항목별 지출'!$E:$E) -> 0 | D20: =(SUMIF('자선 사업 및 후원'!$L:$L,"="&($A20&TEXT(D$4,"yyyy-mm")),'자선 사업 및 후원'!$D:$D)+SUMIF('항목별 지출'!$J:$J,"="&($A20&TEXT(D$4,"yyyy-mm")),'항목별 지출'!$E:$E))*1000 -> 0 | E20: =(SUMIF('자선 사업 및 후원'!$L:$L,"="&($A20&TEXT(E$4,"yyyy-mm")),'자선 사업 및 후원'!$D:$D)+SUMIF('항목별 지출'!$J:$J,"="&($A20&TEXT(E$4,"yyyy-mm")),'항목별 지출'!$E:$E))*1000 -> 0 | F20: =(SUMIF('자선 사업 및 후원'!$L:$L,"="&($A20&TEXT(F$4,"yyyy-mm")),'자선 사업 및 후원'!$D:$D)+SUMIF('항목별 지출'!$J:$J,"="&($A20&TEXT(F$4,"yyyy-mm")),'항목별 지출'!$E:$E))*1000 -> 0 | G20: =(SUMIF('자선 사업 및 후원'!$L:$L,"="&($A20&TEXT(G$4,"yyyy-mm")),'자선 사업 및 후원'!$D:$D)+SUMIF('항목별 지출'!$J:$J,"="&($A20&TEXT(G$4,"yyyy-mm")),'항목별 지출'!$E:$E))*1000 -> 0 | H20: =(SUMIF('자선 사업 및 후원'!$L:$L,"="&($A20&TEXT(H$4,"yyyy-mm")),'자선 사업 및 후원'!$D:$D)+SUMIF('항목별 지출'!$J:$J,"="&($A20&TEXT(H$4,"yyyy-mm")),'항목별 지출'!$E:$E))*1000 -> 0 | I20: =(SUMIF('자선 사업 및 후원'!$L:$L,"="&($A20&TEXT(I$4,"yyyy-mm")),'자선 사업 및 후원'!$D:$D)+SUMIF('항목별 지출'!$J:$J,"="&($A20&TEXT(I$4,"yyyy-mm")),'항목별 지출'!$E:$E))*1000 -> 0 | J20: =(SUMIF('자선 사업 및 후원'!$L:$L,"="&($A20&TEXT(J$4,"yyyy-mm")),'자선 사업 및 후원'!$D:$D)+SUMIF('항목별 지출'!$J:$J,"="&($A20&TEXT(J$4,"yyyy-mm")),'항목별 지출'!$E:$E))*1000 -> 0 | K20: =(SUMIF('자선 사업 및 후원'!$L:$L,"="&($A20&TEXT(K$4,"yyyy-mm")),'자선 사업 및 후원'!$D:$D)+SUMIF('항목별 지출'!$J:$J,"="&($A20&TEXT(K$4,"yyyy-mm")),'항목별 지출'!$E:$E))*1000 -> 0 | L20: =(SUMIF('자선 사업 및 후원'!$L:$L,"="&($A20&TEXT(L$4,"yyyy-mm")),'자선 사업 및 후원'!$D:$D)+SUMIF('항목별 지출'!$J:$J,"="&($A20&TEXT(L$4,"yyyy-mm")),'항목별 지출'!$E:$E))*1000 -> 0 | M20: =(SUMIF('자선 사업 및 후원'!$L:$L,"="&($A20&TEXT(M$4,"yyyy-mm")),'자선 사업 및 후원'!$D:$D)+SUMIF('항목별 지출'!$J:$J,"="&($A20&TEXT(M$4,"yyyy-mm")),'항목별 지출'!$E:$E))*1000 -> 0 | N20: =(SUMIF('자선 사업 및 후원'!$L:$L,"="&($A20&TEXT(N$4,"yyyy-mm")),'자선 사업 및 후원'!$D:$D)+SUMIF('항목별 지출'!$J:$J,"="&($A20&TEXT(N$4,"yyyy-mm")),'항목별 지출'!$E:$E))*1000 -> 0 | O20: =(SUM(C20:N20))*1000 -> 0
A22: 9000 | B22: 건물 비용 | C22: =SUMIF('자선 사업 및 후원'!$L:$L,"="&($A22&TEXT(C$4,"yyyy-mm")),'자선 사업 및 후원'!$D:$D)+SUMIF('항목별 지출'!$J:$J,"="&($A22&TEXT(C$4,"yyyy-mm")),'항목별 지출'!$E:$E) -> 0 | D22: =(SUMIF('자선 사업 및 후원'!$L:$L,"="&($A22&TEXT(D$4,"yyyy-mm")),'자선 사업 및 후원'!$D:$D)+SUMIF('항목별 지출'!$J:$J,"="&($A22&TEXT(D$4,"yyyy-mm")),'항목별 지출'!$E:$E))*1000 -> 0 | E22: =(SUMIF('자선 사업 및 후원'!$L:$L,"="&($A22&TEXT(E$4,"yyyy-mm")),'자선 사업 및 후원'!$D:$D)+SUMIF('항목별 지출'!$J:$J,"="&($A22&TEXT(E$4,"yyyy-mm")),'항목별 지출'!$E:$E))*1000 -> 0 | F22: =(SUMIF('자선 사업 및 후원'!$L:$L,"="&($A22&TEXT(F$4,"yyyy-mm")),'자선 사업 및 후원'!$D:$D)+SUMIF('항목별 지출'!$J:$J,"="&($A22&TEXT(F$4,"yyyy-mm")),'항목별 지출'!$E:$E))*1000 -> 0 | G22: =(SUMIF('자선 사업 및 후원'!$L:$L,"="&($A22&TEXT(G$4,"yyyy-mm")),'자선 사업 및 후원'!$D:$D)+SUMIF('항목별 지출'!$J:$J,"="&($A22&TEXT(G$4,"yyyy-mm")),'항목별 지출'!$E:$E))*1000 -> 0 | H22: =(SUMIF('자선 사업 및 후원'!$L:$L,"="&($A22&TEXT(H$4,"yyyy-mm")),'자선 사업 및 후원'!$D:$D)+SUMIF('항목별 지출'!$J:$J,"="&($A22&TEXT(H$4,"yyyy-mm")),'항목별 지출'!$E:$E))*1000 -> 0 | I22: =(SUMIF('자선 사업 및 후원'!$L:$L,"="&($A22&TEXT(I$4,"yyyy-mm")),'자선 사업 및 후원'!$D:$D)+SUMIF('항목별 지출'!$J:$J,"="&($A22&TEXT(I$4,"yyyy-mm")),'항목별 지출'!$E:$E))*1000 -> 0 | J22: =(SUMIF('자선 사업 및 후원'!$L:$L,"="&($A22&TEXT(J$4,"yyyy-mm")),'자선 사업 및 후원'!$D:$D)+SUMIF('항목별 지출'!$J:$J,"="&($A22&TEXT(J$4,"yyyy-mm")),'항목별 지출'!$E:$E))*1000 -> 0 | K22: =(SUMIF('자선 사업 및 후원'!$L:$L,"="&($A22&TEXT(K$4,"yyyy-mm")),'자선 사업 및 후원'!$D:$D)+SUMIF('항목별 지출'!$J:$J,"="&($A22&TEXT(K$4,"yyyy-mm")),'항목별 지출'!$E:$E))*1000 -> 0 | L22: =(SUMIF('자선 사업 및 후원'!$L:$L,"="&($A22&TEXT(L$4,"yyyy-mm")),'자선 사업 및 후원'!$D:$D)+SUMIF('항목별 지출'!$J:$J,"="&($A22&TEXT(L$4,"yyyy-mm")),'항목별 지출'!$E:$E))*1000 -> 0 | M22: =(SUMIF('자선 사업 및 후원'!$L:$L,"="&($A22&TEXT(M$4,"yyyy-mm")),'자선 사업 및 후원'!$D:$D)+SUMIF('항목별 지출'!$J:$J,"="&($A22&TEXT(M$4,"yyyy-mm")),'항목별 지출'!$E:$E))*1000 -> 0 | N22: =(SUMIF('자선 사업 및 후원'!$L:$L,"="&($A22&TEXT(N$4,"yyyy-mm")),'자선 사업 및 후원'!$D:$D)+SUMIF('항목별 지출'!$J:$J,"="&($A22&TEXT(N$4,"yyyy-mm")),'항목별 지출'!$E:$E))*1000 -> 0 | O22: =(SUM(C22:N22))*1000 -> 0
A24: 10000 | B24: 마케팅 | C24: =SUMIF('자선 사업 및 후원'!$L:$L,"="&($A24&TEXT(C$4,"yyyy-mm")),'자선 사업 및 후원'!$D:$D)+SUMIF('항목별 지출'!$J:$J,"="&($A24&TEXT(C$4,"yyyy-mm")),'항목별 지출'!$E:$E) -> 0 | D24: =(SUMIF('자선 사업 및 후원'!$L:$L,"="&($A24&TEXT(D$4,"yyyy-mm")),'자선 사업 및 후원'!$D:$D)+SUMIF('항목별 지출'!$J:$J,"="&($A24&TEXT(D$4,"yyyy-mm")),'항목별 지출'!$E:$E))*1000 -> 0 | E24: =(SUMIF('자선 사업 및 후원'!$L:$L,"="&($A24&TEXT(E$4,"yyyy-mm")),'자선 사업 및 후원'!$D:$D)+SUMIF('항목별 지출'!$J:$J,"="&($A24&TEXT(E$4,"yyyy-mm")),'항목별 지출'!$E:$E))*1000 -> 0 | F24: =(SUMIF('자선 사업 및 후원'!$L:$L,"="&($A24&TEXT(F$4,"yyyy-mm")),'자선 사업 및 후원'!$D:$D)+SUMIF('항목별 지출'!$J:$J,"="&($A24&TEXT(F$4,"yyyy-mm")),'항목별 지출'!$E:$E))*1000 -> 0 | G24: =(SUMIF('자선 사업 및 후원'!$L:$L,"="&($A24&TEXT(G$4,"yyyy-mm")),'자선 사업 및 후원'!$D:$D)+SUMIF('항목별 지출'!$J:$J,"="&($A24&TEXT(G$4,"yyyy-mm")),'항목별 지출'!$E:$E))*1000 -> 0 | H24: =(SUMIF('자선 사업 및 후원'!$L:$L,"="&($A24&TEXT(H$4,"yyyy-mm")),'자선 사업 및 후원'!$D:$D)+SUMIF('항목별 지출'!$J:$J,"="&($A24&TEXT(H$4,"yyyy-mm")),'항목별 지출'!$E:$E))*1000 -> 0 | I24: =(SUMIF('자선 사업 및 후원'!$L:$L,"="&($A24&TEXT(I$4,"yyyy-mm")),'자선 사업 및 후원'!$D:$D)+SUMIF('항목별 지출'!$J:$J,"="&($A24&TEXT(I$4,"yyyy-mm")),'항목별 지출'!$E:$E))*1000 -> 0 | J24: =(SUMIF('자선 사업 및 후원'!$L:$L,"="&($A24&TEXT(J$4,"yyyy-mm")),'자선 사업 및 후원'!$D:$D)+SUMIF('항목별 지출'!$J:$J,"="&($A24&TEXT(J$4,"yyyy-mm")),'항목별 지출'!$E:$E))*1000 -> 0 | K24: =(SUMIF('자선 사업 및 후원'!$L:$L,"="&($A24&TEXT(K$4,"yyyy-mm")),'자선 사업 및 후원'!$D:$D)+SUMIF('항목별 지출'!$J:$J,"="&($A24&TEXT(K$4,"yyyy-mm")),'항목별 지출'!$E:$E))*1000 -> 0 | L24: =(SUMIF('자선 사업 및 후원'!$L:$L,"="&($A24&TEXT(L$4,"yyyy-mm")),'자선 사업 및 후원'!$D:$D)+SUMIF('항목별 지출'!$J:$J,"="&($A24&TEXT(L$4,"yyyy-mm")),'항목별 지출'!$E:$E))*1000 -> 0 | M24: =(SUMIF('자선 사업 및 후원'!$L:$L,"="&($A24&TEXT(M$4,"yyyy-mm")),'자선 사업 및 후원'!$D:$D)+SUMIF('항목별 지출'!$J:$J,"="&($A24&TEXT(M$4,"yyyy-mm")),'항목별 지출'!$E:$E))*1000 -> 0 | N24: =(SUMIF('자선 사업 및 후원'!$L:$L,"="&($A24&TEXT(N$4,"yyyy-mm")),'자선 사업 및 후원'!$D:$D)+SUMIF('항목별 지출'!$J:$J,"="&($A24&TEXT(N$4,"yyyy-mm")),'항목별 지출'!$E:$E))*1000 -> 0 | O24: =(SUM(C24:N24))*1000 -> 0
A26: 11000 | B26: 자선 사업 | C26: =SUMIF('자선 사업 및 후원'!$L:$L,"="&($A26&TEXT(C$4,"yyyy-mm")),'자선 사업 및 후원'!$D:$D)+SUMIF('항목별 지출'!$J:$J,"="&($A26&TEXT(C$4,"yyyy-mm")),'항목별 지출'!$E:$E) -> 0 | D26: =SUMIF('자선 사업 및 후원'!$L:$L,"="&($A26&TEXT(D$4,"yyyy-mm")),'자선 사업 및 후원'!$D:$D)+SUMIF('항목별 지출'!$J:$J,"="&($A26&TEXT(D$4,"yyyy-mm")),'항목별 지출'!$E:$E) -> \2,500,000.00 | E26: =(SUMIF('자선 사업 및 후원'!$L:$L,"="&($A26&TEXT(E$4,"yyyy-mm")),'자선 사업 및 후원'!$D:$D)+SUMIF('항목별 지출'!$J:$J,"="&($A26&TEXT(E$4,"yyyy-mm")),'항목별 지출'!$E:$E))*1000 -> 0 | F26: =(SUMIF('자선 사업 및 후원'!$L:$L,"="&($A26&TEXT(F$4,"yyyy-mm")),'자선 사업 및 후원'!$D:$D)+SUMIF('항목별 지출'!$J:$J,"="&($A26&TEXT(F$4,"yyyy-mm")),'항목별 지출'!$E:$E))*1000 -> 0 | G26: =(SUMIF('자선 사업 및 후원'!$L:$L,"="&($A26&TEXT(G$4,"yyyy-mm")),'자선 사업 및 후원'!$D:$D)+SUMIF('항목별 지출'!$J:$J,"="&($A26&TEXT(G$4,"yyyy-mm")),'항목별 지출'!$E:$E))*1000 -> 0 | H26: =(SUMIF('자선 사업 및 후원'!$L:$L,"="&($A26&TEXT(H$4,"yyyy-mm")),'자선 사업 및 후원'!$D:$D)+SUMIF('항목별 지출'!$J:$J,"="&($A26&TEXT(H$4,"yyyy-mm")),'항목별 지출'!$E:$E))*1000 -> 0 | I26: =(SUMIF('자선 사업 및 후원'!$L:$L,"="&($A26&TEXT(I$4,"yyyy-mm")),'자선 사업 및 후원'!$D:$D)+SUMIF('항목별 지출'!$J:$J,"="&($A26&TEXT(I$4,"yyyy-mm")),'항목별 지출'!$E:$E))*1000 -> 0 | J26: =(SUMIF('자선 사업 및 후원'!$L:$L,"="&($A26&TEXT(J$4,"yyyy-mm")),'자선 사업 및 후원'!$D:$D)+SUMIF('항목별 지출'!$J:$J,"="&($A26&TEXT(J$4,"yyyy-mm")),'항목별 지출'!$E:$E))*1000 -> 0 | K26: =(SUMIF('자선 사업 및 후원'!$L:$L,"="&($A26&TEXT(K$4,"yyyy-mm")),'자선 사업 및 후원'!$D:$D)+SUMIF('항목별 지출'!$J:$J,"="&($A26&TEXT(K$4,"yyyy-mm")),'항목별 지출'!$E:$E))*1000 -> 0 | L26: =(SUMIF('자선 사업 및 후원'!$L:$L,"="&($A26&TEXT(L$4,"yyyy-mm")),'자선 사업 및 후원'!$D:$D)+SUMIF('항목별 지출'!$J:$J,"="&($A26&TEXT(L$4,"yyyy-mm")),'항목별 지출'!$E:$E))*1000 -> 0 | M26: =(SUMIF('자선 사업 및 후원'!$L:$L,"="&($A26&TEXT(M$4,"yyyy-mm")),'자선 사업 및 후원'!$D:$D)+SUMIF('항목별 지출'!$J:$J,"="&($A26&TEXT(M$4,"yyyy-mm")),'항목별 지출'!$E:$E))*1000 -> 0 | N26: =(SUMIF('자선 사업 및 후원'!$L:$L,"="&($A26&TEXT(N$4,"yyyy-mm")),'자선 사업 및 후원'!$D:$D)+SUMIF('항목별 지출'!$J:$J,"="&($A26&TEXT(N$4,"yyyy-mm")),'항목별 지출'!$E:$E))*1000 -> 0 | O26: =SUM(C26:N26) -> \2,500,000.00
A28: 12000 | B28: 후원금 | C28: =SUMIF('자선 사업 및 후원'!$L:$L,"="&($A28&TEXT(C$4,"yyyy-mm")),'자선 사업 및 후원'!$D:$D)+SUMIF('항목별 지출'!$J:$J,"="&($A28&TEXT(C$4,"yyyy-mm")),'항목별 지출'!$E:$E) -> \1,000,000.00 | D28: =(SUMIF('자선 사업 및 후원'!$L:$L,"="&($A28&TEXT(D$4,"yyyy-mm")),'자선 사업 및 후원'!$D:$D)+SUMIF('항목별 지출'!$J:$J,"="&($A28&TEXT(D$4,"yyyy-mm")),'항목별 지출'!$E:$E))*1000 -> 0 | E28: =(SUMIF('자선 사업 및 후원'!$L:$L,"="&($A28&TEXT(E$4,"yyyy-mm")),'자선 사업 및 후원'!$D:$D)+SUMIF('항목별 지출'!$J:$J,"="&($A28&TEXT(E$4,"yyyy-mm")),'항목별 지출'!$E:$E))*1000 -> 0 | F28: =(SUMIF('자선 사업 및 후원'!$L:$L,"="&($A28&TEXT(F$4,"yyyy-mm")),'자선 사업 및 후원'!$D:$D)+SUMIF('항목별 지출'!$J:$J,"="&($A28&TEXT(F$4,"yyyy-mm")),'항목별 지출'!$E:$E))*1000 -> 0 | G28: =(SUMIF('자선 사업 및 후원'!$L:$L,"="&($A28&TEXT(G$4,"yyyy-mm")),'자선 사업 및 후원'!$D:$D)+SUMIF('항목별 지출'!$J:$J,"="&($A28&TEXT(G$4,"yyyy-mm")),'항목별 지출'!$E:$E))*1000 -> 0 | H28: =(SUMIF('자선 사업 및 후원'!$L:$L,"="&($A28&TEXT(H$4,"yyyy-mm")),'자선 사업 및 후원'!$D:$D)+SUMIF('항목별 지출'!$J:$J,"="&($A28&TEXT(H$4,"yyyy-mm")),'항목별 지출'!$E:$E))*1000 -> 0 | I28: =(SUMIF('자선 사업 및 후원'!$L:$L,"="&($A28&TEXT(I$4,"yyyy-mm")),'자선 사업 및 후원'!$D:$D)+SUMIF('항목별 지출'!$J:$J,"="&($A28&TEXT(I$4,"yyyy-mm")),'항목별 지출'!$E:$E))*1000 -> 0 | J28: =(SUMIF('자선 사업 및 후원'!$L:$L,"="&($A28&TEXT(J$4,"yyyy-mm")),'자선 사업 및 후원'!$D:$D)+SUMIF('항목별 지출'!$J:$J,"="&($A28&TEXT(J$4,"yyyy-mm")),'항목별 지출'!$E:$E))*1000 -> 0 | K28: =(SUMIF('자선 사업 및 후원'!$L:$L,"="&($A28&TEXT(K$4,"yyyy-mm")),'자선 사업 및 후원'!$D:$D)+SUMIF('항목별 지출'!$J:$J,"="&($A28&TEXT(K$4,"yyyy-mm")),'항목별 지출'!$E:$E))*1000 -> 0 | L28: =(SUMIF('자선 사업 및 후원'!$L:$L,"="&($A28&TEXT(L$4,"yyyy-mm")),'자선 사업 및 후원'!$D:$D)+SUMIF('항목별 지출'!$J:$J,"="&($A28&TEXT(L$4,"yyyy-mm")),'항목별 지출'!$E:$E))*1000 -> 0 | M28: =(SUMIF('자선 사업 및 후원'!$L:$L,"="&($A28&TEXT(M$4,"yyyy-mm")),'자선 사업 및 후원'!$D:$D)+SUMIF('항목별 지출'!$J:$J,"="&($A28&TEXT(M$4,"yyyy-mm")),'항목별 지출'!$E:$E))*1000 -> 0 | N28: =(SUMIF('자선 사업 및 후원'!$L:$L,"="&($A28&TEXT(N$4,"yyyy-mm")),'자선 사업 및 후원'!$D:$D)+SUMIF('항목별 지출'!$J:$J,"="&($A28&TEXT(N$4,"yyyy-mm")),'항목별 지출'!$E:$E))*1000 -> 0 | O28: =SUM(C28:N28) -> \1,000,000.00
B30: 총계 | C30: =SUM(C6:C28) -> \4,250,750.00 | D30: =SUM(D6:D28) -> \2,500,000.00 | E30: =(SUMIF('자선 사업 및 후원'!$L:$L,"="&($A30&TEXT(E$4,"yyyy-mm")),'자선 사업 및 후원'!$D:$D)+SUMIF('항목별 지출'!$J:$J,"="&($A30&TEXT(E$4,"yyyy-mm")),'항목별 지출'!$E:$E))*1000 -> 0 | F30: =(SUMIF('자선 사업 및 후원'!$L:$L,"="&($A30&TEXT(F$4,"yyyy-mm")),'자선 사업 및 후원'!$D:$D)+SUMIF('항목별 지출'!$J:$J,"="&($A30&TEXT(F$4,"yyyy-mm")),'항목별 지출'!$E:$E))*1000 -> 0 | G30: =(SUMIF('자선 사업 및 후원'!$L:$L,"="&($A30&TEXT(G$4,"yyyy-mm")),'자선 사업 및 후원'!$D:$D)+SUMIF('항목별 지출'!$J:$J,"="&($A30&TEXT(G$4,"yyyy-mm")),'항목별 지출'!$E:$E))*1000 -> 0 | H30: =(SUMIF('자선 사업 및 후원'!$L:$L,"="&($A30&TEXT(H$4,"yyyy-mm")),'자선 사업 및 후원'!$D:$D)+SUMIF('항목별 지출'!$J:$J,"="&($A30&TEXT(H$4,"yyyy-mm")),'항목별 지출'!$E:$E))*1000 -> 0 | I30: =(SUMIF('자선 사업 및 후원'!$L:$L,"="&($A30&TEXT(I$4,"yyyy-mm")),'자선 사업 및 후원'!$D:$D)+SUMIF('항목별 지출'!$J:$J,"="&($A30&TEXT(I$4,"yyyy-mm")),'항목별 지출'!$E:$E))*1000 -> 0 | J30: =(SUMIF('자선 사업 및 후원'!$L:$L,"="&($A30&TEXT(J$4,"yyyy-mm")),'자선 사업 및 후원'!$D:$D)+SUMIF('항목별 지출'!$J:$J,"="&($A30&TEXT(J$4,"yyyy-mm")),'항목별 지출'!$E:$E))*1000 -> 0 | K30: =(SUMIF('자선 사업 및 후원'!$L:$L,"="&($A30&TEXT(K$4,"yyyy-mm")),'자선 사업 및 후원'!$D:$D)+SUMIF('항목별 지출'!$J:$J,"="&($A30&TEXT(K$4,"yyyy-mm")),'항목별 지출'!$E:$E))*1000 -> 0 | L30: =(SUMIF('자선 사업 및 후원'!$L:$L,"="&($A30&TEXT(L$4,"yyyy-mm")),'자선 사업 및 후원'!$D:$D)+SUMIF('항목별 지출'!$J:$J,"="&($A30&TEXT(L$4,"yyyy-mm")),'항목별 지출'!$E:$E))*1000 -> 0 | M30: =(SUMIF('자선 사업 및 후원'!$L:$L,"="&($A30&TEXT(M$4,"yyyy-mm")),'자선 사업 및 후원'!$D:$D)+SUMIF('항목별 지출'!$J:$J,"="&($A30&TEXT(M$4,"yyyy-mm")),'항목별 지출'!$E:$E))*1000 -> 0 | N30: =(SUMIF('자선 사업 및 후원'!$L:$L,"="&($A30&TEXT(N$4,"yyyy-mm")),'자선 사업 및 후원'!$D:$D)+SUMIF('항목별 지출'!$J:$J,"="&($A30&TEXT(N$4,"yyyy-mm")),'항목별 지출'!$E:$E))*1000 -> 0 | O30: =SUM(O6:O28) -> \6,750,750.00

Sheet 항목별 지출
A1: G/L 코드 | B1: 송장 날짜 | C1: 송장 번호 | D1: 요청한 사람 | E1: 수표 금액 | F1: 수취인 | G1: 수표 사용 | H1: 배포 방법 | I1: 파일 날짜 | J1: 생성된 주요 필드
A2: 1000 | B2: 2005-01-01 | C2: 100 | D2: 지명환 | E2: \750,750.00 | F2: 통합 메신저 | G2: 발송자 | H2: 메일 | I2: 2005-01-04 | J2: =A2&TEXT(B2,"yyyy-mm") -> 10002005-01
A3: 7000 | B3: 2005-01-15 | C3: 101 | D3: 유민수 | E3: \2,500,000.00 | F3: A. 국제 무역 | G3: 데스크톱 컴퓨터 2대 | H3: 신용 | I3: 2005-01-20 | J3: 70002005-01
J4: 1900-01
J5: 1900-01
J6: 1900-01
J7: 1900-01
J8: 1900-01
J9: 1900-01
J10: 1900-01
J11: 1900-01
J12: 1900-01
J13: 1900-01
J14: 1900-01
J15: 1900-01
J16: 1900-01
J17: 1900-01
J18: 1900-01
J19: 1900-01
J20: 1900-01
J21: 1900-01
J22: 1900-01
J23: 1900-01
J24: 1900-01
J25: 1900-01
J26: 1900-01
J27: 1900-01
J28: 1900-01
J29: 1900-01
J30: 1900-01
J31: 1900-01
J32: 1900-01
J33: 1900-01
J34: =A34&TEXT(B34,"yyyy-mm") -> 1900-01
J35: 1900-01
J36: 1900-01
J37: 1900-01
J38: 1900-01
J39: 1900-01
J40: 1900-01
J41: 1900-01
J42: 1900-01
J43: 1900-01
J44: 1900-01
J45: 1900-01
J46: 1900-01
J47: 1900-01
J48: 1900-01
J49: 1900-01
J50: 1900-01
J51: 1900-01
J52: 1900-01
J53: 1900-01
J54: 1900-01
J55: 1900-01
J56: 1900-01
J57: 1900-01
J58: 1900-01
J59: 1900-01
J60: 1900-01
J61: 1900-01
J62: 1900-01
J63: 1900-01
J64: 1900-01
J65: 1900-01
J66: =A66&TEXT(B66,"yyyy-mm") -> 1900-01
J67: 1900-01
J68: 1900-01
J69: 1900-01
J70: 1900-01
J71: 1900-01
J72: 1900-01
J73: 1900-01
J74: 1900-01
J75: 1900-01
J76: 1900-01
J77: 1900-01
J78: 1900-01
J79: 1900-01
J80: 1900-01
J81: 1900-01
J82: 1900-01
J83: 1900-01
J84: 1900-01
J85: 1900-01
J86: 1900-01
J87: 1900-01
J88: 1900-01
J89: 1900-01
J90: 1900-01
J91: 1900-01
J92: 1900-01
J93: 1900-01
J94: 1900-01
J95: 1900-01
J96: 1900-01
J97: 1900-01
J98: =A98&TEXT(B98,"yyyy-mm") -> 1900-01
J99: 1900-01
J100: 1900-01
J101: 1900-01
J102: 1900-01
J103: 1900-01

Sheet 자선 사업 및 후원
A1: G/L 코드 | B1: 수표 요청이 시작된 날짜 | C1: 요청한 사람 | D1: 수표 금액 | E1: 전년도 성과 | F1: 수취인 | G1: 용도 | H1: 서명한 사람 | I1: 범주 | J1: 배포 방법 | K1: 파일 날짜 | L1: 생성된 주요 필드
A2: 12000 | B2: 2005-01-20 | C2: 윤영미 | D2: \1,000,000.00 | E2: 0 | F2: 미술 대학교 | G2: 장학금 | H2: 김은희 | I2: 미술 | J2: 수표 | K2: 2005-01-30 | L2: =A2&TEXT(B2,"yyyy-mm") -> 120002005-01
A3: 11000 | B3: 2005-02-15 | C3: 윤영미 | D3: \2,500,000.00 | E3: 0 | F3: 날개 완구점 | G3: 커뮤니티 | H3: 허지혜 | I3: 커뮤니티 | J3: 수표 | K3: 2005-03-01 | L3: 110002005-02
L4: 1900-01
L5: 1900-01
L6: 1900-01
L7: 1900-01
L8: 1900-01
L9: 1900-01
L10: 1900-01
L11: 1900-01
L12: 1900-01
L13: 1900-01
L14: 1900-01
L15: 1900-01
L16: 1900-01
L17: 1900-01
L18: 1900-01
L19: 1900-01
L20: 1900-01
L21: 1900-01
L22: 1900-01
L23: 1900-01
L24: 1900-01
L25: 1900-01
L26: 1900-01
L27: 1900-01
L28: 1900-01
L29: 1900-01
L30: 1900-01
L31: 1900-01
L32: 1900-01
L33: 1900-01
L34: =A34&TEXT(B34,"yyyy-mm") -> 1900-01
L35: 1900-01
L36: 1900-01
L37: 1900-01
L38: 1900-01
L39: 1900-01
L40: 1900-01
L41: 1900-01
L42: 1900-01
L43: 1900-01
L44: 1900-01
L45: 1900-01
L46: 1900-01
L47: 1900-01
L48: 1900-01
L49: 1900-01
L50: 1900-01
L51: 1900-01
L52: 1900-01
L53: 1900-01
L54: 1900-01
L55: 1900-01
L56: 1900-01
L57: 1900-01
L58: 1900-01
L59: 1900-01
L60: 1900-01
L61: 1900-01
L62: 1900-01
L63: 1900-01
L64: 1900-01
L65: 1900-01
L66: =A66&TEXT(B66,"yyyy-mm") -> 1900-01
L67: 1900-01
L68: 1900-01
L69: 1900-01
L70: 1900-01
L71: 1900-01
L72: 1900-01
L73: 1900-01
L74: 1900-01
L75: 1900-01
L76: 1900-01
L77: 1900-01
L78: 1900-01
L79: 1900-01
L80: 1900-01
L81: 1900-01
L82: 1900-01
L83: 1900-01
L84: 1900-01
L85: 1900-01
L86: 1900-01
L87: 1900-01
L88: 1900-01
L89: 1900-01
L90: 1900-01
L91: 1900-01
L92: 1900-01
L93: 1900-01
L94: 1900-01
L95: 1900-01
L96: 1900-01
L97: 1900-01
L98: =A98&TEXT(B98,"yyyy-mm") -> 1900-01
L99: 1900-01
L100: 1900-01
L101: 1900-01
L102: 1900-01
L103: 1900-01
L104: 1900-01
L105: 1900-01
L106: 1900-01
L107: 1900-01
L108: 1900-01
L109: 1900-01
